bitfinex/quotes_ETHUSD_20240702
["timestamp","ask_amount","ask_price","bid_price","bid_amount"]
[1719933565762,0.5069941,3416.5,3416.3,1.052]
[1719933565947,0.5069941,3416.6,3416.4,1.052]
[1719933566147,0.50699331,3416.5,3416.4,1.052]
[1719933566681,0.50699331,3416.5,3416.2,3.97922]
[1719933566976,0.50699331,3416.4,3416.2,3.97922]
[1719933567151,0.50699331,3416.6,3416.2,3.97922]
[1719933567745,9.892,3416.7,3416.2,3.97922]
[1719933567949,0.50700519,3416.6,3416.2,3.97922]
[1719933568186,0.50700519,3416.5,3416.2,3.97922]
[1719933568353,0.50700519,3416.6,3416.2,3.97922]
[1719933568686,0.50700519,3416.5,3416.2,3.97922]
[1719933568862,0.50700519,3416.4,3416.2,3.97922]
[1719933569066,9.892,3416.7,3416.2,3.97922]
[1719933569255,0.50697995,3416.6,3416.2,3.97922]
[1719933569584,0.50697995,3416.5,3416.2,3.97922]
[1719933569878,0.50697995,3416.4,3416.2,3.97922]
[1719933570050,0.50697995,3416.6,3416.2,3.97922]
[1719933570651,0.38450829,3416.5,3416.2,3.97922]
[1719933570854,0.50697995,3416.4,3416.2,3.97922]
[1719933571057,0.89149402,3416.3,3416.2,3.97922]
[1719933571288,0.38450744,3416.3,3416.2,3.97922]
[1719933571579,9.892,3416.7,3416.2,3.97922]
[1719933571780,0.38450744,3416.3,3416.2,3.97922]
[1719933571986,0.50698915,3416.3,3416.2,3.97922]
[1719933572157,0.38450744,3416.3,3416.2,3.97922]
[1719933572353,0.89149659,3416.3,3416.2,3.97922]
[1719933572554,0.50698915,3416.3,3416.2,3.97922]
[1719933572754,0.38450717,3416.3,3416.2,3.97922]
[1719933573056,0.50698915,3416.5,3416.2,3.97922]
[1719933573258,0.89152661,3416.4,3416.2,3.97922]
[1719933573468,0.50698915,3416.3,3416.2,3.97922]
[1719933573669,0.50698915,3416.3,3416.2,4.669881]
[1719933573670,0.38453677,3416.3,3416.2,4.669881]
[1719933573885,2.442,3416.7,3416.2,4.669881]
[1719933574055,0.89150508,3416.6,3416.2,4.669881]
[1719933574256,0.50696715,3416.5,3416.2,4.669881]
[1719933574454,0.89150435,3416.4,3416.2,4.669881]
[1719933574651,0.50698729,3416.3,3416.2,4.669881]
[1719933574890,0.38453677,3416.3,3416.2,4.669881]
[1719933575074,0.50697631,3416.6,3416.2,4.669881]
[1719933575279,0.38453762,3416.5,3416.2,3.97922]
[1719933575465,0.50697631,3416.4,3416.2,3.97922]
[1719933575664,0.38453677,3416.3,3416.2,3.97922]
[1719933575877,0.89151308,3416.3,3416.2,3.97922]
[1719933577382,0.38453677,3416.3,3416.2,3.97922]
[1719933577760,2.442,3416.7,3416.2,3.97922]
[1719933577958,0.38453693,3416.3,3416.2,3.97922]
[1719933578259,0.89153096,3416.3,3416.2,3.97922]
[1719933580691,0.89152295,3416.3,3416.2,3.97922]
[1719933580858,0.89152296,3416.3,3416.2,3.97922]
[1719933581292,0.89152296,3416.3,3416.2,4.669881]
[1719933582272,0.50698603,3416.3,3416.2,4.669881]
[1719933583164,2.442,3416.7,3416.5,2.92688]
[1719933583361,0.50695439,3416.6,3416.5,2.92688]
[1719933583563,0.50695439,3416.6,3416.5,3.97888]
[1719933583762,2.442,3416.7,3416.6,2.92688]
[1719933584063,2.94893944,3416.7,3416.6,2.92688]
[1719933584258,3.32024458,3416.7,3416.6,2.92688]
[1719933586092,0.87824458,3416.7,3416.6,2.92688]
[1719933586291,0.87824458,3416.7,3416.5,1.052]
[1719933586468,0.50693944,3416.6,3416.5,3.97897]
[1719933586668,0.87824614,3416.6,3416.5,3.97897]
[1719933586864,0.3713067,3416.6,3416.5,3.97897]
[1719933587069,2.4306,3417.0,3416.6,2.92685]
[1719933587070,0.50693861,3416.9,3416.6,2.92685]
[1719933587375,0.87824487,3416.8,3416.6,2.92685]
[1719933587574,0.50693861,3416.7,3416.6,2.92685]
[1719933587963,0.87824445,3416.7,3416.6,2.92685]
[1719933588870,0.87824445,3416.7,3416.5,1.052]
[1719933589081,2.4306,3417.0,3415.8,2.92753]
[1719933589082,0.50693861,3416.6,3415.8,2.92753]
[1719933589282,0.50693861,3416.9,3416.5,1.052]
[1719933589508,0.87826661,3416.8,3416.5,1.052]
[1719933589685,0.50696105,3416.7,3416.5,1.052]
[1719933589890,0.50696105,3416.6,3416.5,1.052]
[1719933590091,2.4306,3417.0,3416.5,1.052]
[1719933590302,0.87826223,3416.9,3416.5,1.052]
[1719933590628,0.50693734,3416.8,3416.5,3.97895]
[1719933590784,0.50693734,3416.7,3416.5,3.97895]
[1719933591110,2.4306,3417.0,3416.5,3.97895]
[1719933591111,0.50693734,3416.6,3416.5,3.97895]
[1719933591284,0.50693734,3416.9,3416.5,3.97895]
[1719933591489,0.87824489,3416.8,3416.5,3.97895]
[1719933591689,0.50693734,3416.7,3416.5,3.97895]
[1719933592079,0.50693734,3416.6,3416.5,3.97895]
[1719933592286,0.50693734,3416.9,3416.5,3.97895]
[1719933592606,0.87824489,3416.8,3416.5,3.97895]
[1719933592809,0.50693734,3416.7,3416.5,3.97895]
[1719933593007,0.50693734,3416.6,3416.5,3.97895]
[1719933593181,2.4306,3417.0,3416.5,3.97895]
[1719933593377,0.50694689,3416.9,3416.5,2.92695]
[1719933593584,0.50694689,3416.8,3416.5,3.97895]
[1719933593994,0.37140395,3416.7,3416.5,3.97895]
[1719933594201,0.50694689,3416.6,3416.5,3.97895]
[1719933596485,2.4306,3417.0,3416.5,3.97895]
[1719933596693,0.50694212,3416.6,3416.5,3.97895]
[1719933599921,2.4306,3417.0,3416.5,3.97895]
[1719933600198,0.36998971,3416.6,3416.5,3.97895]
[1719933600399,2.4036,3417.4,3416.5,6.90584]
[1719933600646,2.4036,3417.2,3416.5,6.90584]
[1719933600853,2.4036,3417.2,3416.5,3.97889]
[1719933601131,2.2709,3417.0,3416.5,3.97889]
[1719933601515,0.36999312,3416.9,3416.5,3.97889]
[1719933605010,0.36999312,3416.9,3416.7,1.052]
[1719933605215,0.36999312,3416.9,3416.5,3.97889]
[1719933606337,0.36999312,3416.9,3416.4,1.052]
[1719933606502,2.3735,3416.8,3416.4,2.92701]
[1719933606705,2.7432018,3416.8,3416.4,3.97901]
[1719933607314,2.3995,3416.6,3416.0,1.052]
[1719933607940,2.3995,3416.4,3416.0,1.052]
[1719933608345,0.36969968,3416.3,3416.0,1.052]
[1719933609440,0.36969968,3416.3,3416.0,3.9794]
[1719933610027,0.36969968,3416.3,3416.0,1.052]
[1719933611341,0.50702588,3416.2,3416.0,1.052]
[1719933611545,0.50702588,3416.2,3415.9,2.92747]
[1719933611546,0.50702588,3416.1,3415.9,2.92747]
[1719933611747,0.36464883,3416.1,3416.0,1.052]
[1719933611914,0.50702168,3416.3,3416.0,1.052]
[1719933612116,0.36464883,3416.1,3416.0,1.052]
[1719933612311,0.50702168,3416.2,3416.0,1.052]
[1719933612609,2.3995,3416.4,3416.1,1.052]
[1719933612922,0.5070224,3416.3,3416.0,2.9274]
[1719933613126,2.3995,3416.4,3416.2,1.052]
[1719933613643,0.50699591,3416.3,3416.2,1.052]
[1719933613944,0.50699591,3416.3,3416.2,3.97922]
[1719933614125,0.50699591,3416.3,3416.2,4.6991467]
[1719933615625,0.86654219,3416.3,3416.2,4.6991467]
[1719933616215,0.35954628,3416.3,3416.2,4.6991467]
[1719933616417,0.86653088,3416.3,3416.2,4.6991467]
[1719933617117,0.35954628,3416.3,3416.2,4.6991467]
[1719933617426,2.2628,3417.0,3416.3,2.92707]
[1719933617628,0.50696095,3416.9,3416.6,1.052]
[1719933617838,0.50696095,3416.8,3416.6,1.052]
[1719933618012,0.50696095,3416.7,3416.6,1.052]
[1719933618213,0.86604892,3416.7,3416.6,1.052]
[1719933620225,0.86604118,3416.7,3416.6,1.052]
[1719933620638,2.4653,3416.6,3416.2,2.92722]
[1719933620855,0.50695364,3416.5,3416.4,1.052]
[1719933621054,0.8616148,3416.5,3416.4,1.052]
[1719933621365,0.50695364,3416.5,3416.4,1.052]
[1719933622430,0.50695364,3416.5,3416.0,2.92734]
[1719933622631,0.50695364,3416.5,3416.1,1.052]
[1719933622632,2.3537,3416.4,3416.1,1.052]
[1719933622934,2.3132,3416.2,3414.8,2.92836]
[1719933623364,2.3132,3416.0,3415.5,1.052]
[1719933623563,0.50708655,3415.9,3415.1,5.85627]
[1719933623862,0.50708655,3415.8,3414.9,5.85658]
[1719933624063,0.50708655,3415.8,3415.3,1.052]
[1719933624268,2.3093,3415.6,3415.3,1.052]
[1719933624473,0.50708655,3415.5,3415.3,1.052]
[1719933624763,0.35446096,3415.4,3415.3,1.052]
[1719933624937,0.86154751,3415.4,3415.3,1.052]
[1719933625138,0.35446096,3415.4,3415.3,1.052]
[1719933625463,2.3093,3415.6,3415.3,1.052]
[1719933625667,0.35446096,3415.4,3415.3,1.052]
[1719933626029,2.3093,3415.6,3415.3,1.052]
[1719933626236,0.35446096,3415.4,3414.9,2.92827]
[1719933626431,2.3093,3415.6,3415.3,1.052]
[1719933628769,0.50717383,3415.5,3415.3,1.052]
[1719933629074,0.35349472,3415.5,3415.3,1.052]
[1719933629375,2.3093,3415.6,3415.3,1.052]
[1719933629757,0.50716781,3415.5,3415.3,1.052]
[1719933630068,0.35349472,3415.5,3415.3,1.052]
[1719933630574,2.3093,3415.6,3415.3,1.052]
[1719933630946,0.35349472,3415.5,3415.3,1.052]
[1719933633670,0.35349472,3415.5,3415.0,2.92825]
[1719933633872,0.35349472,3415.5,3415.2,1.052]
[1719933634969,0.35349472,3415.5,3415.4,1.052]
[1719933639573,0.35349472,3415.5,3415.3,1.052]
[1719933640069,0.35349472,3415.5,3414.8,3.221189]
[1719933640070,0.35349472,3415.5,3415.1,1.052]
[1719933640577,0.35349472,3415.5,3414.8,2.9284]
[1719933640755,0.35349472,3415.5,3415.2,1.052]
[1719933648081,0.35349472,3415.5,3415.4,1.052]
[1719933648564,2.3516,3415.8,3415.4,1.052]
[1719933648769,0.34846229,3415.5,3415.4,1.052]
[1719933649107,2.3516,3415.8,3415.4,1.052]
[1719933649251,1.36276685,3415.5,3415.4,1.052]
[1719933649447,1.01430456,3415.5,3415.4,1.052]
[1719933649678,1.36276685,3415.5,3415.4,1.052]
[1719933652076,0.85561457,3415.5,3415.4,1.052]
[1719933652278,0.85558313,3415.5,3415.4,4.377921]
[1719933652450,0.85558313,3415.5,3415.4,3.97991]
[1719933652656,0.34846229,3415.5,3415.4,3.97991]
[1719933652884,2.4175,3416.0,3415.5,2.92778]
[1719933653055,0.50707835,3415.9,3415.5,2.92778]
[1719933653255,0.26162758,3415.9,3415.8,1.052]
[1719933653485,0.76870594,3415.9,3415.8,3.97957]
[1719933653692,0.76870594,3415.9,3415.8,4.377527]
[1719933654057,0.50707836,3415.9,3415.8,4.377527]
[1719933654384,2.4175,3416.3,3415.9,2.92746]
[1719933654593,0.50701771,3416.2,3415.9,2.92746]
[1719933654769,2.4175,3416.3,3416.1,1.052]
[1719933655096,0.50701674,3416.2,3416.1,1.052]
[1719933655463,0.50701685,3416.2,3416.1,1.052]
[1719933657187,2.92,3416.4,3416.1,1.052]
[1719933657388,2.92,3416.4,3415.9,2.92746]
[1719933657389,0.50701352,3416.3,3415.9,2.98600377]
[1719933657552,2.4175,3416.5,3416.2,1.052]
[1719933657759,0.50698704,3416.4,3416.2,1.052]
[1719933657999,2.4175,3416.5,3416.2,1.052]
[1719933658194,2.4175,3416.5,3416.0,2.92739]
[1719933658195,0.50699229,3416.4,3416.0,2.92739]
[1719933658398,2.4175,3416.5,3416.3,1.052]
[1719933658703,2.4175,3416.5,3415.4,2.92788]
[1719933658704,0.50700102,3416.4,3415.8,2.92751]
[1719933658871,2.4175,3416.5,3416.3,1.052]
[1719933659072,0.50701188,3416.4,3416.3,1.052]
[1719933660978,2.4175,3416.5,3416.3,1.052]
[1719933661187,0.76874906,3416.4,3416.3,1.052]
[1719933661603,0.50701714,3416.4,3416.3,1.052]
[1719933662103,0.50702087,3416.4,3416.3,1.052]
[1719933663008,0.50702087,3416.4,3416.1,1.052]
[1719933663302,0.50702087,3416.3,3416.2,1.052]
[1719933663504,0.26173192,3416.4,3416.2,1.052]
[1719933663803,2.4175,3416.5,3416.2,1.052]
[1719933663981,0.50702522,3416.4,3416.2,1.052]
[1719933664177,2.4175,3416.5,3416.2,1.052]
[1719933664376,0.50702867,3416.4,3416.2,1.052]
[1719933664585,2.4175,3416.5,3416.2,1.052]
[1719933664807,0.50702988,3416.4,3416.2,1.052]
[1719933665113,0.50702746,3416.3,3416.2,1.052]
[1719933665275,0.50703434,3416.3,3416.2,1.052]
[1719933666979,0.50703434,3416.3,3416.0,1.052]
[1719933667177,2.4175,3416.5,3416.0,1.052]
[1719933667377,0.50704062,3416.4,3416.0,1.052]
[1719933667707,0.50704062,3416.3,3416.0,1.052]
[1719933667889,2.4175,3416.5,3416.0,1.052]
[1719933668207,0.50703199,3416.4,3416.0,1.052]
[1719933668510,0.50703199,3416.3,3416.0,1.052]
[1719933668704,0.50703199,3416.4,3416.0,1.052]
[1719933669134,0.26182836,3416.3,3416.0,1.052]
[1719933669410,2.97693199,3416.2,3415.9,1.052]
[1719933669725,2.73172794,3416.2,3415.9,1.052]
[1719933670425,2.73172794,3416.2,3415.2,3.21503042]
[1719933670591,2.4699,3416.2,3415.6,1.052]
[1719933670797,3.20239965,3416.1,3415.6,1.052]
[1719933671116,2.94051148,3416.0,3415.6,1.052]
[1719933671288,2.89701148,3415.9,3415.2,2.92805]
[1719933671611,0.50711148,3415.8,3415.4,1.052]
[1719933671785,0.76019791,3415.8,3414.7,3.22077861]
[1719933671985,0.76019791,3415.8,3415.1,1.052]
[1719933671986,2.98611148,3415.7,3415.1,1.052]
[1719933672199,0.50711148,3415.6,3415.1,1.052]
[1719933672617,0.76019566,3415.6,3415.1,1.052]
[1719933672909,0.50711148,3415.5,3415.1,1.052]
[1719933673312,0.25308333,3415.4,3415.1,1.052]
[1719933674009,0.25296067,3415.3,3415.1,1.052]
[1719933674219,2.3203,3415.2,3414.7,2.92844]
[1719933674511,2.5732565,3415.2,3414.5,2.92863]
[1719933674713,0.50722586,3415.1,3414.8,1.052]
[1719933674884,2.5732565,3415.2,3414.8,1.052]
[1719933675084,0.25282275,3415.0,3414.8,1.052]
[1719933675283,2.3203,3415.2,3414.8,1.052]
[1719933675510,0.25282232,3414.9,3414.8,1.052]
[1719933675698,2.3203,3415.2,3414.8,1.052]
[1719933675906,0.25282232,3414.9,3414.8,1.052]
[1719933676098,2.3203,3415.2,3414.8,1.052]
[1719933676304,0.25282232,3414.9,3414.6,2.92859]
[1719933676616,2.4915,3415.9,3414.8,1.052]
[1719933676816,1.05717257,3415.8,3415.4,1.052]
[1719933676982,0.50717257,3415.7,3415.4,1.052]
[1719933677181,0.50717257,3415.6,3415.4,1.052]
[1719933677406,0.50717257,3415.5,3415.2,1.052]
[1719933677715,0.55,3415.8,3415.2,1.052]
[1719933677897,0.50716919,3415.7,3415.2,1.052]
[1719933678098,0.50716919,3415.6,3415.2,1.052]
[1719933678283,0.50716919,3415.5,3415.2,1.052]
[1719933678487,0.55,3415.8,3415.2,1.052]
[1719933678685,0.50716642,3415.7,3415.2,1.052]
[1719933678906,0.50716642,3415.6,3415.2,1.052]
[1719933679116,0.50716642,3415.7,3415.2,1.052]
[1719933679318,2.4681,3415.6,3414.7,2.92851]
[1719933679517,0.50716642,3415.5,3415.0,1.052]
[1719933680112,0.50718287,3415.4,3415.2,1.052]
[1719933680322,2.4681,3415.6,3415.2,1.052]
[1719933680625,0.50716971,3415.5,3415.2,1.052]
[1719933680806,2.4681,3415.6,3415.2,1.052]
[1719933681011,2.3026,3415.4,3414.9,1.052]
[1719933681327,0.50719614,3415.3,3414.6,2.92854]
[1719933681488,2.3026,3415.4,3414.9,1.052]
[1719933681489,0.50719614,3415.2,3414.9,1.052]
[1719933681692,2.3026,3415.4,3414.9,1.052]
[1719933681919,0.50720659,3415.3,3414.9,1.052]
[1719933682221,2.3026,3415.4,3414.9,1.052]
[1719933682422,0.50720418,3415.3,3414.9,1.052]
[1719933682592,2.3026,3415.4,3414.9,1.052]
[1719933682915,0.50720356,3415.3,3414.9,1.052]
[1719933683088,2.3026,3415.4,3414.9,1.052]
[1719933686733,0.507204,3415.3,3414.5,2.9286]
[1719933686889,2.3968,3415.2,3414.8,1.052]
[1719933688617,2.3968,3415.2,3414.6,2.92859]
[1719933688816,2.3968,3415.2,3414.8,1.052]
[1719933690259,0.50723343,3415.1,3414.6,1.052]
[1719933690404,0.5072578,3415.0,3414.4,1.052]
[1719933690730,0.24615329,3414.9,3414.4,1.052]
[1719933691115,2.3968,3415.2,3414.4,1.052]
[1719933691306,0.24615287,3414.8,3414.6,1.052]
[1719933691504,2.3968,3415.2,3414.6,1.052]
[1719933691733,0.50725811,3415.1,3414.6,1.052]
[1719933691931,0.50725811,3415.0,3414.6,1.052]
[1719933692135,0.24615414,3415.1,3414.6,1.052]
[1719933692346,0.24612882,3414.9,3414.6,1.052]
[1719933692852,2.3968,3415.2,3414.6,1.052]
[1719933693056,2.3968,3415.2,3414.3,2.92885]
[1719933693254,0.75339021,3415.1,3414.7,1.052]
[1719933693409,0.50726054,3415.0,3414.7,1.052]
[1719933693741,0.24612882,3414.9,3414.3,3.34652308]
[1719933694164,2.3968,3415.2,3414.0,2.92907]
[1719933694396,1.052,3415.0,3413.6,2.92942]
[1719933694644,2.2523,3414.7,3413.9,1.052]
[1719933694844,0.75321052,3414.6,3414.1,1.052]
[1719933695043,0.24593462,3414.6,3414.1,1.052]
[1719933695581,0.50732391,3414.5,3414.1,1.052]
[1719933695780,0.24593462,3414.6,3413.9,2.92919]
[1719933695990,0.24593342,3414.4,3414.1,1.052]
[1719933696187,0.24580635,3414.5,3413.9,2.92919]
[1719933696395,0.24580573,3414.3,3414.0,1.052]
[1719933696599,0.24580912,3414.4,3414.0,1.052]
[1719933696888,2.2523,3414.7,3414.0,1.052]
[1719933697070,0.75314013,3414.6,3414.0,1.052]
[1719933697377,0.75314013,3414.6,3413.8,2.92927]
[1719933697378,0.50733204,3414.5,3413.8,2.92927]
[1719933697578,0.50733204,3414.5,3414.0,1.052]
[1719933697786,0.24580724,3414.4,3414.0,1.052]
[1719933698361,2.2523,3414.7,3414.0,1.052]
[1719933698576,0.24572802,3414.3,3414.0,1.052]
[1719933698784,2.2523,3414.7,3414.0,1.052]
[1719933698968,0.24572759,3414.2,3414.0,1.052]
[1719933699182,2.2523,3414.7,3414.0,1.052]
[1719933699686,0.24572929,3414.6,3414.2,1.052]
[1719933701376,0.24572929,3414.6,3414.0,1.052]
[1719933703485,2.2579,3414.5,3414.0,1.052]
[1719933703883,0.23616958,3414.4,3414.0,1.052]
[1719933705402,2.3246,3414.3,3413.3,5.85934]
[1719933705698,0.23616779,3414.2,3413.7,1.052]
[1719933706320,0.23616779,3414.2,3413.2,2.92979]
[1719933706321,2.71696779,3414.2,3413.2,2.92979]
[1719933706601,2.71696779,3414.2,3413.6,1.052]
[1719933707178,2.71696779,3414.2,3413.8,1.052]
[1719933711094,2.71696779,3414.2,3413.5,2.92953]
[1719933711095,2.71696779,3414.2,3413.6,1.052]
[1719933711415,2.71696779,3414.2,3413.8,1.052]
[1719933713909,2.71696779,3414.2,3414.0,1.052]
[1719933716300,0.23616779,3414.2,3414.0,3.9811]
[1719933716619,2.2843,3414.4,3414.1,2.92902]
[1719933716765,2.2843,3414.4,3414.3,1.052]
[1719933717499,2.3726,3414.8,3414.3,1.052]
[1719933717715,2.3726,3414.8,3414.7,1.052]
[1719933717868,2.3726,3414.8,3414.5,1.052]
[1719933718812,2.3726,3414.8,3414.7,1.052]
[1719933719009,2.28,3415.3,3414.7,1.052]
[1719933719715,2.28,3415.3,3415.2,1.052]
[1719933720065,2.4405,3415.8,3415.2,1.052]
[1719933720272,2.4405,3415.8,3415.4,1.052]
[1719933720713,0.22661315,3415.7,3415.4,1.052]
[1719933720919,2.4405,3415.8,3415.4,1.052]
[1719933721095,0.22661315,3415.7,3415.4,1.052]
[1719933721314,2.4405,3415.8,3415.4,1.052]
[1719933721491,0.22666486,3415.7,3415.4,1.052]
[1719933721848,2.4405,3415.8,3415.2,1.052]
[1719933722023,0.22672703,3415.6,3415.2,1.052]
[1719933722172,0.22672745,3415.7,3415.2,1.052]
[1719933722513,0.22672703,3415.6,3415.2,1.052]
[1719933722729,2.4405,3415.8,3415.2,1.052]
[1719933722874,0.22672745,3415.7,3415.2,1.052]
[1719933723281,0.22672745,3415.7,3415.4,1.052]
[1719933723586,2.4405,3415.8,3415.4,1.052]
[1719933723809,0.22672621,3415.6,3415.4,1.052]
[1719933724015,2.4405,3415.8,3415.4,1.052]
[1719933724191,0.22672578,3415.5,3415.4,1.052]
[1719933724390,2.4405,3415.8,3415.4,1.052]
[1719933724605,0.22671762,3415.5,3415.4,1.052]
[1719933725091,2.4405,3415.8,3415.4,1.052]
[1719933725295,0.22671847,3415.7,3415.4,1.052]
[1719933725491,2.4405,3415.8,3415.4,1.052]
[1719933725795,0.22671847,3415.7,3415.3,1.052]
[1719933726337,0.22673437,3415.6,3415.3,1.052]
[1719933726620,0.22673437,3415.6,3414.9,5.8566]
[1719933726843,2.92,3415.9,3415.1,1.052]
[1719933726844,2.3972,3415.5,3415.1,1.052]
[1719933727045,2.62393395,3415.5,3415.1,1.052]
[1719933727323,2.62393395,3415.5,3413.6,2.92945]
[1719933727324,2.62393395,3415.5,3414.5,2.92861]
[1719933727492,2.62393395,3415.5,3414.7,1.052]
[1719933728576,2.62393395,3415.5,3414.3,2.92881]
[1719933728777,2.3225,3415.3,3414.6,1.052]
[1719933729378,2.4328,3415.1,3414.3,3.98083]
[1719933729830,0.22684615,3415.2,3414.1,2.92895]
[1719933729831,2.65953676,3415.0,3414.1,2.92895]
[1719933730052,2.65953676,3415.0,3414.6,1.052]
[1719933730186,2.65953676,3415.0,3414.8,1.052]
[1719933730591,2.65953676,3415.0,3414.1,2.92902]
[1719933730811,2.65953676,3415.0,3414.7,1.052]
[1719933731031,2.65953676,3415.0,3414.1,2.92902]
[1719933731227,2.65953676,3415.0,3414.7,1.052]
[1719933732020,2.65831738,3415.0,3414.7,1.052]
[1719933732393,2.3223,3414.8,3414.6,1.052]
[1719933732588,0.55,3414.7,3414.6,1.052]
[1719933732790,0.77645193,3414.7,3414.6,1.052]
[1719933733212,0.22645193,3414.7,3414.6,1.052]
[1719933733589,2.3223,3414.8,3414.6,1.450083]
[1719933733988,0.22642743,3414.7,3414.6,1.450083]
[1719933734519,0.22641926,3414.7,3414.6,4.378593]
[1719933734757,2.4425,3415.2,3414.7,2.9285]
[1719933734929,2.2727,3415.8,3415.1,1.052]
[1719933735089,2.2727,3415.8,3415.6,1.052]
[1719933735919,0.67922151,3416.6,3415.6,1.052]
[1719933736087,2.2701,3416.2,3415.8,1.052]
[1719933737831,2.2701,3416.2,3415.6,5.45073]
[1719933738715,2.2701,3416.2,3415.7,2.92764]
[1719933738916,2.2701,3416.2,3415.8,2.92757]
[1719933739659,3.13895868,3415.9,3415.8,2.92757]
[1719933739864,0.21895868,3415.9,3415.8,2.92757]
[1719933740069,0.21895868,3415.9,3415.8,5.85514]
[1719933740250,4.85,3417.4,3416.2,2.92722]
[1719933740251,2.3688,3417.1,3416.2,2.92722]
[1719933740553,0.19696581,3417.0,3416.5,5.44995]
[1719933740924,0.19696581,3417.0,3416.6,2.92684]
[1719933741836,0.19696581,3417.0,3416.7,2.92678]
[1719933742465,0.19696581,3417.0,3416.5,2.523]
[1719933743046,0.19696581,3417.0,3416.5,5.44996]
[1719933743457,0.19696581,3417.0,3416.5,2.523]
[1719933743809,0.19696581,3417.0,3416.1,2.523]
[1719933744549,1.95796581,3417.0,3415.7,2.92764]
[1719933744708,0.55,3416.9,3415.9,2.523]
[1719933745047,0.19718529,3416.8,3415.9,2.523]
[1719933745644,0.19718529,3416.8,3415.9,5.45048]
[1719933745833,0.19718529,3416.8,3415.9,6.288292]
[1719933746248,0.19718529,3416.8,3416.3,2.523]
[1719933746556,2.3688,3417.1,3416.3,2.523]
[1719933746708,0.19683154,3416.7,3416.3,2.523]
[1719933746912,2.3688,3417.1,3416.3,2.523]
[1719933747109,0.19683281,3417.0,3416.3,2.523]
[1719933749270,0.19683281,3417.0,3416.3,6.287867]
[1719933749544,0.19683281,3417.0,3416.4,2.92705]
[1719933749750,0.19683281,3417.0,3416.7,2.523]
[1719933750624,0.19683281,3417.0,3416.7,5.44978]
[1719933751016,5.3773,3417.5,3416.7,5.44978]
[1719933751676,0.19682266,3417.4,3417.1,2.523]
[1719933752255,2.92,3417.6,3417.1,5.44945]
[1719933752460,2.92,3417.6,3417.5,2.523]
[1719933753364,2.4655,3417.9,3417.5,2.523]
[1719933754098,2.3036,3418.7,3417.6,2.92596]
[1719933754292,2.3036,3418.7,3418.1,2.523]
[1719933756056,5.3036,3418.7,3418.1,2.523]
[1719933757365,5.5972,3418.7,3418.1,2.523]
[1719933758642,5.5972,3418.7,3417.7,2.523]
[1719933759869,5.5972,3418.7,3417.7,2.490028]
[1719933763568,2.0546,3418.6,3417.7,2.490028]
[1719933763769,2.3199,3418.3,3417.0,2.92647]
[1719933763971,2.3199,3418.3,3417.3,2.523]
[1719933764139,2.6135,3418.3,3417.3,2.523]
[1719933765667,0.17546539,3418.2,3417.3,2.523]
[1719933767890,2.4272,3418.1,3417.3,2.523]
[1719933768176,0.17543737,3418.0,3417.3,2.523]
[1719933770986,2.452,3417.9,3417.3,2.523]
[1719933771293,0.17619543,3417.8,3416.9,2.523]
[1719933771595,2.452,3417.9,3416.9,2.523]
[1719933771812,2.452,3417.9,3416.9,5.44961]
[1719933771958,0.17619543,3417.8,3416.9,5.44961]
[1719933772454,2.2608,3417.7,3416.9,2.523]
[1719933772654,0.17619458,3417.6,3416.9,2.523]
[1719933774974,0.17619458,3417.6,3416.9,3.360654]
[1719933776889,0.17619458,3417.6,3416.9,6.287254]
[1719933777093,0.17619458,3417.6,3417.0,0.05852376]
[1719933777301,0.17619458,3417.6,3417.3,2.523]
[1719933777896,2.2608,3417.7,3417.3,2.523]
[1719933779291,0.17606437,3417.6,3417.3,2.523]
[1719933780504,2.3479,3418.0,3417.3,2.523]
[1719933780699,0.17607655,3417.9,3417.3,5.44925]
[1719933781872,0.17607655,3417.9,3417.3,2.523]
[1719933789809,2.395,3417.8,3416.9,2.92662]
[1719933790022,2.395,3417.8,3417.0,2.523]
[1719933790228,0.17615453,3417.7,3417.0,2.523]
[1719933790747,2.3242,3417.6,3417.0,2.523]
[1719933790927,0.17613735,3417.5,3417.0,2.523]
[1719933791437,0.17613735,3417.5,3417.0,5.44953]
[1719933792751,0.17611016,3417.5,3417.0,5.44953]
[1719933792894,0.17611016,3417.5,3417.0,2.523]
[1719933793794,2.2981,3417.4,3417.0,2.523]
[1719933794233,0.17610932,3417.3,3417.0,2.523]
[1719933795597,2.3964,3417.2,3417.0,2.523]
[1719933795992,0.1760541,3417.1,3417.0,2.523]
[1719933797647,0.1760541,3417.1,3416.6,2.523]
[1719933798140,2.3964,3417.2,3416.6,2.523]
[1719933804109,2.3964,3417.2,3416.6,5.44988]
[1719933804817,2.3964,3417.2,3416.6,8.3767]
[1719933805328,2.3964,3417.2,3417.0,2.523]
[1719933805705,2.3964,3417.2,3416.7,2.92677]
[1719933805901,2.3964,3417.2,3417.1,1.05]
[1719933806120,2.4446,3418.1,3417.1,1.05]
[1719933806326,2.4446,3417.9,3417.8,1.05]
[1719933806526,3.89450692,3417.9,3417.8,1.05]
[1719933806727,4.07027167,3417.9,3417.8,1.05]
[1719933807341,2.62036475,3417.9,3417.8,1.05]
[1719933807652,4.07012628,3417.9,3417.8,1.05]
[1719933809817,4.07012628,3417.9,3417.3,2.521]
[1719933810018,1.44976153,3417.8,3417.3,2.521]
[1719933810412,0.17585087,3417.7,3417.3,2.521]